[Event "FIDE World School-ch O-17 2025"]
[Site "Vrnjacka Banja"]
[Date "2025.03.25"]
[Round "6.6"]
[White "Milanovic, Marko"]
[Black "Adithya A Chullikkad"]
[Result "1/2-1/2"]
[Annotator "TA"]
[ECO "B31"]
[WhiteElo "2271"]
[BlackElo "2101"]
[PlyCount "158"]
[EventDate "2025.03.19"]
[EventType "swiss"]
[EventCountry "SRB"]
[SourceTitle "playchess.com"]
[Source "ChessBase"]
[SourceQuality "1"]
[TimeControl "5400+30"]

{[%evp 15,158,-28,-21,-25,-33,-34,-5,-22,-16,-7,-27,-31,10,-26,-7,-18,-16,-23,-14,-26,-18,-8,40,48,43,31,136,138,314,55,42,16,16,39,45,17,13,35,27,0,24,26,57,59,61,108,83,8,58,0,0,0,-3,-65,-8,-116,-93,-92,0,0,16,0,8,11,22,8,8,8,8,8,8,0,0,0,0,0,5,0,4,3,8,8,8,8,8,8,12,12,12,12,12,8,12,8,12,8,8,8,8,8,8,8,12,12,12,12,12,12,12,12,12,12,12,12,12,12,12,12,12,12,12,12,12,12,12,12,12,12,12,0,12,12,12,12,12,12,12,12,12,12,12,12,12,12,12]} 1. e4 {[%emt 0:01:59]} c5 {[%emt 0:00:27]} 2. Nf3 {[%emt 0:00:21]} Nc6 {[%emt 0:00:15]} 3. Bb5 {[%emt 0:00:34]} g6 {[%emt 0:00:35]} 4. O-O {[%emt 0:01:52]} Bg7 {[%emt 0:02:02]} 5. Re1 {[%emt 0:03:47]} e5 {[%emt 0:03:21]} 6. c3 {[%emt 0:05:32]} Nge7 {[%emt 0:02:13]} 7. Na3 {[%emt 0:05:32][%cal Bb1a3,Ba3c2,Bc2e3][%mdl 32]} O-O {[%emt 0:13:10]} 8. Nc2 {[%emt 0:06:43]} d5 {[%emt 0:03:53]} 9. exd5 {[%emt 0:07:39] B31: Sicilian: 2...Nc6 3 Bb5 g6.} Qxd5 {[%emt 0:00:18]} 10. d3 {[%emt 0:03:37]} h6 {[%emt 0:14:23] Dodges Ng5} 11. a4 {[%emt 0:15:08]} Qd6 {[%emt 0:10:57]} 12. Ne3 {[%emt 0:08:28]} Be6 $146 {[%emt 0:09:10]} (12... a6 13. Bc4 Na5 14. Qe2 Be6 15. Bxe6 Qxe6 16. h3 f5 17. Nc2 Nec6 18. Bf4 Qb3 {0-1 Martos Martin,D (1177)-Delgado Torra,B (1531) Llinars del Valles op 1st 2021 (5)}) 13. Qe2 {[%emt 0:12:55]} Rad8 {[%emt 0:05:13]} 14. a5 {[%emt 0:06:08]} a6 {[%emt 0:03:11]} 15. Bc4 {[%emt 0:00:23]} Nd5 {[%emt 0:03:44]} 16. Nxd5 {[%emt 0:02:34]} Bxd5 {[%emt 0:00:07]} 17. Be3 {[%emt 0:01:01]} f5 {[%emt 0:09:10]} 18. Nd2 {[%emt 0:01:35]} Ne7 {[%emt 0:04:58]} (18... Bxc4 $11 {might be stronger.} 19. Nxc4 Qd5) 19. Nb3 $14 {[%emt 0:01:03]} Rc8 {[%emt 0:00:14][%cal Bd8c8,Bc8c5,Bc5c4,Bc4e4][%mdl 32]} 20. f4 {[%emt 0:03:48]} Bxc4 {[%emt 0:07:11]} (20... exf4 $14 21. Bxc5 Rxc5 22. Qxe7 Rc6) 21. dxc4 $16 {[%emt 0:00:05]} exf4 $2 {[%emt 0:00:38]} (21... Rc6 $16 22. fxe5 Qc7) 22. Bxc5 $2 {[%emt 0:07:01]} ({White must play} 22. Rad1 $18 Qe5 23. Bxc5 Rxc5 24. Qf2 Rxa5 25. Nxa5) 22... Rxc5 $14 {[%emt 0:00:11]} 23. Qxe7 {[%emt 0:00:16]} (23. Rad1 Nd5 24. Kf1 Qc6 25. cxd5 Rxd5 26. Rxd5 Qxd5 27. Qe6+) 23... Qxe7 {[%emt 0:00:26]} 24. Rxe7 {[%emt 0:00:02]} Rxc4 {[%emt 0:01:23]} 25. Rd1 {[%emt 0:01:19]} Re4 {[%emt 0:01:04]} 26. Rxb7 {[%emt 0:00:52]} Rfe8 {[%emt 0:00:12]} 27. Rbd7 {[%emt 0:02:15]} Bf6 {[%emt 0:02:12]} 28. Nc5 {[%emt 0:01:09][%csl LRa6,LRe4]} Re2 {[%emt 0:00:19]} 29. R7d2 $1 {[%emt 0:00:42]} Bh4 {[%emt 0:00:25]} 30. Rxe2 {[%emt 0:00:30]} Rxe2 {[%emt 0:00:02][%mdl 4096] Endgame KRB-KRN} 31. Nd3 {[%emt 0:00:31]} (31. Nxa6 Bf2+ 32. Kh1 (32. Kf1 Rxb2 33. g3 Be3 $15) 32... Rxb2 $11) (31. b4 $16) 31... g5 {[%emt 0:00:56]} (31... Bf6 $11) 32. b4 {[%emt 0:00:34]} ({White should try} 32. c4 $14) 32... Rc2 $11 {[%emt 0:00:49]} 33. Rc1 {[%emt 0:00:24]} Rd2 {[%emt 0:00:05]} 34. Ne5 {[%emt 0:00:20]} (34. Ne1 $1 $11) 34... g4 {[%emt 0:00:07]} ({Black should play} 34... Bf2+ $1 $15 35. Kh1 Kg7) 35. c4 {[%emt 0:00:35] [#]} (35. Nc4 $11 {keeps the balance.} Rd8 36. Kf1) 35... Bf2+ $1 $17 {[%emt 0:03:32]} 36. Kh1 {[%emt 0:00:09] [#]} Bd4 {[%emt 0:00:11]} (36... Be3 $1 $17 {...Kg7 is the strong threat.} 37. Rb1 Ra2) 37. Nc6 $11 {[%emt 0:00:33] Nxd4 is the strong threat. The position is equal.} Be3 {[%emt 0:00:05]} 38. Rb1 {[%emt 0:01:00]} f3 {[%emt 0:00:28]} 39. gxf3 {[%emt 0:00:17]} gxf3 {[%emt 0:00:14]} 40. Ne7+ {[%emt 0:00:43]} (40. b5 axb5 41. Ne7+ (41. cxb5 Bf4 $11) 41... Kh7 42. cxb5 Bf4) 40... Kf7 {[%emt 0:01:12]} 41. Nxf5 {[%emt 0:00:01]} Bf4 {[%emt 0:00:11]} 42. Ng3 $1 {[%emt 0:00:34]} Rc2 {[%emt 0:01:24]} 43. Rf1 {[%emt 0:00:55]} (43. b5 Rxc4 44. bxa6 Ra4 45. Rf1) 43... Rxc4 {[%emt 0:00:31]} (43... Ke6 {keeps more tension.} 44. b5 Rxc4 45. bxa6 Ra4) 44. Rxf3 {[%emt 0:00:02]} Ke6 {[%emt 0:00:21]} 45. Rb3 {[%emt 0:00:51]} Bd6 {[%emt 0:00:48]} 46. b5 {[%emt 0:00:31]} axb5 {[%emt 0:00:08]} 47. Rxb5 {[%emt 0:00:25]} Rc5 {[%emt 0:01:02]} 48. Rxc5 {[%emt 0:00:23]} Bxc5 {[%emt 0:00:03] KB-KN. White is a pawn up.} 49. Kg2 {[%emt 0:00:25]} Kd5 {[%emt 0:00:12]} 50. Nf5 {[%emt 0:00:12]} Bf8 {[%emt 0:00:12]} 51. Kf3 {[%emt 0:00:29]} Kc5 {[%emt 0:00:06]} 52. Kg4 {[%emt 0:00:31]} Kb5 {[%emt 0:00:06]} 53. Kh5 {[%emt 0:00:29]} Kxa5 {[%emt 0:00:05]} 54. Kg6 {[%emt 0:01:05]} Kb5 {[%emt 0:00:12]} 55. Nxh6 {[%emt 0:00:19]} Be7 {[%emt 0:00:24]} 56. Nf7 {[%emt 0:00:35]} Bh4 {[%emt 0:00:10]} 57. Kh5 {[%emt 0:00:42]} Be1 {[%emt 0:00:13]} 58. Ne5 {[%emt 0:00:10]} Kb6 {[%emt 0:00:50]} 59. Nd3 {[%emt 0:00:33]} Bd2 {[%emt 0:00:16]} 60. h4 {[%emt 0:00:28]} Kc7 {[%emt 0:00:22]} 61. Kg6 {[%emt 0:00:15]} Kd8 {[%emt 0:00:21]} 62. Kf7 $1 {[%emt 0:00:41]} Be3 {[%emt 0:01:22]} 63. h5 {[%emt 0:00:05]} Bd2 {[%emt 0:00:11]} 64. Nc5 {[%emt 0:00:33]} Be3 {[%emt 0:00:13]} 65. Ne4 {[%emt 0:00:32]} Bc1 {[%emt 0:00:14]} 66. Nf6 {[%emt 0:00:39]} Bd2 {[%emt 0:00:09]} 67. Ng4 {[%emt 0:00:31]} Bc1 {[%emt 0:00:10]} 68. Ne5 $1 {[%emt 0:00:37]} Bd2 {[%emt 0:00:13]} 69. Nc6+ {[%emt 0:00:20]} Kd7 {[%emt 0:00:06]} 70. Nd4 {[%emt 0:00:06]} Kd8 {[%emt 0:00:18]} 71. Nf3 {[%emt 0:00:15]} Bc1 {[%emt 0:00:07]} 72. Nd4 {[%emt 0:01:03]} Bd2 {[%emt 0:00:10]} 73. Nf5 {[%emt 0:00:25]} Bc1 {[%emt 0:00:12]} 74. Ng7 {[%emt 0:00:05]} Bd2 {[%emt 0:00:16]} 75. Ke6 {[%emt 0:01:12]} Bc1 {[%emt 0:00:15]} 76. Nf5 {[%emt 0:00:43]} Ke8 {[%emt 0:00:15]} 77. Kf6 {[%emt 0:00:23]} Kf8 {[%emt 0:00:13]} 78. Kg6 {[%emt 0:00:12]} Kg8 {[%emt 0:00:12]} 79. Nd6 {[%emt 0:00:59]} Bd2 {[%emt 0:00:09] Weighted Error Value: White=0.21 (precise) /Black=0.16 (very precise)   Loses game:     	---       	Black=1      Missed win:     	White=1     	---        Mistake:       	White=4     	Black=5      Inaccurate:     	White=4     	Black=3      OK:         	White=18    	Black=26     Best:        	White=5     	Black=2      Strong:       	White=4     	Black=1} 1/2-1/2

[Event "FIDE World School-ch O-17 2025"]
[Site "Vrnjacka Banja"]
[Date "2025.03.25"]
[Round "6.7"]
[White "Andjelkovic, Aleksandar M"]
[Black "Amankos, Zhanbolat"]
[Result "1/2-1/2"]
[Annotator "NA RC"]
[ECO "E10"]
[WhiteElo "1930"]
[BlackElo "1954"]
[PlyCount "148"]
[EventDate "2025.03.19"]
[EventType "swiss"]
[EventCountry "SRB"]
[SourceTitle "playchess.com"]
[Source "ChessBase"]
[SourceQuality "1"]
[TimeControl "5400+30"]

1. d4 {[%emt 0:00:07]} Nf6 {[%emt 0:00:08]} 2. Nf3 {[%emt 0:00:11]} e6 {[%emt 0:00:05]} 3. c4 {[%emt 0:00:08]} Nc6 {[%emt 0:00:17]} 4. d5 {[%emt 0:06:13]} exd5 {[%emt 0:00:11]} 5. cxd5 {[%emt 0:00:13]} Bb4+ {[%emt 0:00:02]} 6. Nc3 {[%emt 0:06:46]} Ne7 {[%emt 0:00:43]} 7. e4 {[%emt 0:06:48]} O-O {[%emt 0:08:15]} 8. Bd3 {[%emt 0:02:13]} d6 {[%emt 0:01:36]} 9. h3 {[%emt 0:02:25]} Ng6 {[%emt 0:01:25]} 10. O-O {[%emt 0:01:27]} Bxc3 {[%emt 0:00:32]} 11. bxc3 {[%emt 0:00:08]} Re8 {[%emt 0:08:04]} 12. Re1 {[%emt 0:08:27]} Nd7 {[%emt 0:01:49]} 13. Bb5 {[%emt 0:10:33]} a6 {[%emt 0:00:45]} 14. Ba4 {[%emt 0:00:17]} h6 {[%emt 0:04:36]} 15. Nd4 {[%emt 0:03:25]} b5 {[%emt 0:15:07]} 16. Bc2 {[%emt 0:00:48]} Nc5 {[%emt 0:01:19]} 17. Nc6 {[%emt 0:12:40]} Qh4 {[%emt 0:05:45]} 18. Qd4 {[%emt 0:04:58]} Bf5 {[%emt 0:14:00]} 19. Bxh6 {[%emt 0:04:43]} Qxh6 {[%emt 0:01:57]} 20. exf5 {[%emt 0:00:15]} Nf4 {[%emt 0:00:40]} 21. Kf1 {[%emt 0:07:17]} Qg5 {[%emt 0:02:59]} 22. g3 {[%emt 0:00:16]} Nxh3 {[%emt 0:08:20]} 23. Kg2 {[%emt 0:00:52]} Qh5 {[%emt 0:00:48]} 24. Rh1 {[%emt 0:02:40]} Qe2 {[%emt 0:00:52]} 25. Rxh3 {[%emt 0:14:07]} Qxc2 {[%emt 0:00:14]} 26. Rah1 {[%emt 0:00:37]} f6 {[%emt 0:00:16]} 27. Qg4 {[%emt 0:00:51]} Qe4+ {[%emt 0:00:59]} 28. Qxe4 {[%emt 0:00:33]} Nxe4 {[%emt 0:00:01]} 29. Nd4 {[%emt 0:00:19]} Kf7 {[%emt 0:05:10]} 30. Ne6 {[%emt 0:01:19]} Rg8 {[%emt 0:02:56]} 31. Rh7 {[%emt 0:01:41]} Ng5 {[%emt 0:03:06]} 32. Nxg5+ {[%emt 0:00:09]} fxg5 {[%emt 0:00:02]} 33. R1h6 {[%emt 0:00:18]} Rae8 {[%emt 0:01:30]} 34. Re6 {[%emt 0:01:01]} Rh8 {[%emt 0:01:46]} 35. Rh3 {[%emt 0:01:49]} a5 {[%emt 0:02:18]} 36. f4 {[%emt 0:01:09]} gxf4 {[%emt 0:00:31]} 37. g4 {[%emt 0:00:22]} Rxh3 {[%emt 0:00:25]} 38. Kxh3 {[%emt 0:00:03]} Rh8+ {[%emt 0:00:58]} 39. Kg2 {[%emt 0:00:04]} Rh4 {[%emt 0:00:18]} 40. Kf3 {[%emt 0:00:16]} Rh3+ {[%emt 0:00:56]} 41. Kxf4 {[%emt 0:00:05]} Rxc3 {[%emt 0:00:05]} 42. g5 {[%emt 0:00:41]} Rc4+ {[%emt 0:00:22]} 43. Re4 {[%emt 0:01:07]} Rc2 {[%emt 0:02:05]} 44. a3 {[%emt 0:01:37]} b4 {[%emt 0:03:39]} 45. axb4 {[%emt 0:00:16]} a4 {[%emt 0:00:04]} 46. b5 {[%emt 0:00:07]} a3 {[%emt 0:05:34]} 47. Ra4 {[%emt 0:00:13]} a2 {[%emt 0:00:00]} 48. b6 {[%emt 0:00:57]} Rc4+ {[%emt 0:00:00]} 49. Rxc4 {[%emt 0:00:04]} a1=Q {[%emt 0:01:30]} 50. Rxc7+ {[%emt 0:00:05]} Kf8 {[%emt 0:00:00]} 51. b7 {[%emt 0:01:47]} Qd4+ {[%emt 0:00:00]} 52. Kg3 {[%emt 0:00:15]} Qe5+ {[%emt 0:00:00]} 53. Kg4 {[%emt 0:00:05]} Qe4+ {[%emt 0:00:00]} 54. Kg3 {[%emt 0:00:09]} Qe1+ {[%emt 0:00:00]} 55. Kg4 {[%emt 0:00:16]} Qd1+ {[%emt 0:00:00]} 56. Kf4 {[%emt 0:00:38]} Qa4+ {[%emt 0:00:00]} 57. Kf3 {[%emt 0:00:19]} Qb3+ {[%emt 0:00:00]} 58. Kf4 {[%emt 0:00:57]} Qb4+ {[%emt 0:00:00]} 59. Kf3 {[%emt 0:00:20]} Qb3+ {[%emt 0:00:03]} 60. Kf4 {[%emt 0:00:06]} Qa4+ {[%emt 0:00:31]} 61. Kf3 {[%emt 0:00:21]} Qd1+ {[%emt 0:00:23]} 62. Kf4 {[%emt 0:02:37]} Qd4+ {[%emt 0:00:54]} 63. Kg3 {[%emt 0:00:00]} Qg1+ {[%emt 0:02:01]} 64. Kf4 {[%emt 0:00:00]} Qf2+ {[%emt 0:00:39]} 65. Kg4 {[%emt 0:00:00]} Qd4+ {[%emt 0:00:38]} 66. Kg3 {[%emt 0:00:00]} Qg1+ {[%emt 0:00:54]} 67. Kf4 {[%emt 0:00:00]} Qh2+ {[%emt 0:01:02]} 68. Kg4 {[%emt 0:00:12]} Qe2+ {[%emt 0:00:36]} 69. Kf4 {[%emt 0:01:05]} Qe5+ {[%emt 0:00:42]} 70. Kg4 {[%emt 0:00:32]} Qe4+ {[%emt 0:00:14]} 71. Kg3 {[%emt 0:00:21]} Qe1+ {[%emt 0:01:09]} 72. Kg4 {[%emt 0:00:18]} Qg1+ {[%emt 0:01:01]} 73. Kh4 {[%emt 0:03:02]} Qe1+ {[%emt 0:01:13]} 74. Kh5 {[%emt 0:00:30]} Qe8+ {[%emt 0:00:30]} 1/2-1/2

[Event "FIDE World School-ch O-17 2025"]
[Site "Vrnjacka Banja"]
[Date "2025.03.25"]
[Round "6.8"]
[White "Hansana, K V Tharuka"]
[Black "Brankovic, Uros"]
[Result "0-1"]
[Annotator "NA RC"]
[ECO "B13"]
[WhiteElo "1674"]
[BlackElo "1966"]
[PlyCount "88"]
[EventDate "2025.03.19"]
[EventType "swiss"]
[EventCountry "SRB"]
[SourceTitle "playchess.com"]
[Source "ChessBase"]
[SourceQuality "1"]
[TimeControl "5400+30"]

1. d4 {[%emt 0:00:18]} d5 {[%emt 0:00:05]} 2. Bf4 {[%emt 0:00:07]} c5 {[%emt 0:00:05]} 3. e3 {[%emt 0:00:05]} Nc6 {[%emt 0:00:18]} 4. Nf3 {[%emt 0:00:08]} cxd4 {[%emt 0:00:09]} 5. exd4 {[%emt 0:00:07]} Bf5 {[%emt 0:00:14]} 6. c3 {[%emt 0:00:37]} e6 {[%emt 0:00:59]} 7. Qb3 {[%emt 0:00:47]} Qd7 {[%emt 0:01:12]} 8. Bb5 {[%emt 0:13:50]} Bd6 {[%emt 0:02:37]} 9. Ne5 {[%emt 0:02:42]} Qc7 {[%emt 0:08:58]} 10. O-O {[%emt 0:08:46]} f6 {[%emt 0:03:07]} 11. Nxc6 {[%emt 0:03:06]} bxc6 {[%emt 0:00:08]} 12. Bxd6 {[%emt 0:00:09]} Qxd6 {[%emt 0:00:11]} 13. Qa3 {[%emt 0:06:08]} Qd7 {[%emt 0:07:18]} 14. Ba4 {[%emt 0:06:52]} Ne7 {[%emt 0:01:21]} 15. Nd2 {[%emt 0:00:20]} Kf7 {[%emt 0:03:07]} 16. Nb3 {[%emt 0:04:21]} h5 {[%emt 0:01:47]} 17. Rfe1 {[%emt 0:02:39]} Rh6 {[%emt 0:08:00]} 18. Re3 {[%emt 0:04:09]} Qc7 {[%emt 0:06:15]} 19. Rae1 {[%emt 0:02:48]} Re8 {[%emt 0:04:12]} 20. Qc5 {[%emt 0:05:50]} Rg6 {[%emt 0:03:59]} 21. Na5 {[%emt 0:04:52]} Rc8 {[%emt 0:06:12]} 22. c4 {[%emt 0:06:37]} h4 {[%emt 0:11:48]} 23. Rb3 {[%emt 0:02:34]} Qf4 {[%emt 0:05:43]} 24. Nxc6 {[%emt 0:19:12]} Nxc6 {[%emt 0:13:10]} 25. Bxc6 {[%emt 0:00:13]} Be4 {[%emt 0:00:28]} 26. g3 {[%emt 0:02:00]} hxg3 {[%emt 0:01:22]} 27. fxg3 {[%emt 0:01:45]} Qd2 {[%emt 0:01:22]} 28. Rxe4 {[%emt 0:00:49]} dxe4 {[%emt 0:00:38]} 29. Qd6 {[%emt 0:01:22]} Qe1+ {[%emt 0:00:30]} 30. Kg2 {[%emt 0:00:07]} Qe2+ {[%emt 0:02:48]} 31. Kg1 {[%emt 0:00:27]} Rf8 {[%emt 0:03:53]} 32. Qd7+ {[%emt 0:01:24]} Kg8 {[%emt 0:00:09]} 33. Qxe6+ {[%emt 0:00:03]} Kh8 {[%emt 0:00:39]} 34. Qxe4 {[%emt 0:01:00]} Qd1+ {[%emt 0:00:22]} 35. Kg2 {[%emt 0:00:23]} f5 {[%emt 0:00:35]} 36. Qe7 {[%emt 0:01:04]} Rgf6 {[%emt 0:01:24]} 37. d5 {[%emt 0:00:39]} f4 {[%emt 0:01:10]} 38. gxf4 {[%emt 0:00:11]} Qd2+ {[%emt 0:00:55]} 39. Kg1 {[%emt 0:00:22]} Qxf4 {[%emt 0:00:29]} 40. Rh3+ {[%emt 0:00:56]} Kg8 {[%emt 0:00:12]} 41. Qe2 {[%emt 0:00:02]} Qd4+ {[%emt 0:00:25]} 42. Re3 {[%emt 0:00:51]} Rf3 {[%emt 0:01:29]} 43. Bd7 {[%emt 0:00:44]} Rxe3 {[%emt 0:00:37]} 44. Be6+ {[%emt 0:00:08]} Rxe6+ {[%emt 0:00:05]} 0-1